fUSD/lending_fUSD_20260309
["ID","MTS","AMOUNT","RATE_DAILY","PERIOD"]
[408032568,1773058232520,-500.0,0.00018528,2]
[408032569,1773058232531,-500.0,0.00018528,2]
[408032570,1773058232541,-500.0,0.00018528,2]
[408032571,1773058232552,-500.0,0.00018528,2]
[408032572,1773058232562,-500.0,0.00018528,2]
[408032573,1773058232571,-500.0,0.00018528,2]
[408032574,1773058232581,-103426.59913897,0.00018529,2]
[408032575,1773058232594,-2413.61553984,0.00018529,2]
[408032576,1773058232611,-341.348914,0.00018529,2]
[408032577,1773058232622,-1047.09277503,0.00018529,2]
[408032578,1773058232633,-1707.54897056,0.00018529,2]
[408032579,1773058232649,-571.68055395,0.00018529,2]
[408032580,1773058232660,-555.95984743,0.00018529,2]
[408032581,1773058232671,-871.14161176,0.00018529,2]
[408032582,1773058232683,-2642.63241699,0.00018529,2]
[408032583,1773058232695,-798.714997,0.00018529,2]
[408032584,1773058232828,-120.22478715,0.00018529,2]
[408032585,1773058232840,-2625.65939992,0.00018529,2]
[408032586,1773058232851,-968.82563705,0.00018529,2]
[408032587,1773058232863,-3037.07724405,0.00018529,2]
[408032589,1773058237390,-1172.96774003,0.00018529,2]
[408032590,1773058237401,-873.39,0.00018529,2]
[408032591,1773058237412,-1112.20684154,0.00018529,2]
[408032592,1773058237423,-2080.0,0.00018529,2]
[408032593,1773058237435,-543.10796269,0.00018529,2]
[408032594,1773058237445,-6250.77960331,0.00018529,2]
[408032595,1773058237456,-62027.04175761,0.00018529,2]
[408032596,1773058237471,-1131.6099092,0.00018529,2]
[408032597,1773058237497,-58243.50435192,0.00018529,2]
[408032598,1773058237506,-198.62387425,0.00018529,2]
[408032599,1773058237515,-222.40395506,0.00018533,2]
[408032600,1773058237524,-200.0,0.00018533,2]
[408032601,1773058237534,-642.97646691,0.00018533,2]
[408032602,1773058237543,-300.0,0.00018533,2]
[408032603,1773058237552,-600.0,0.00018533,2]
[408032604,1773058237562,-195.0,0.00018533,2]
[408032605,1773058237571,-2500.0,0.00018533,2]
[408032606,1773058237580,-500.0,0.00018573,2]
[408032607,1773058237589,-500.0,0.00018573,2]
[408032608,1773058237598,-502.1202599,0.00018573,2]
[408032609,1773058237607,-500.23838819,0.00018573,2]
[408032610,1773058237616,-2499.81387239,0.000186,2]
[408032611,1773058237625,-2000.0,0.00018607,2]
[408032612,1773058237634,-3504.29951051,0.00018639,2]
[408032613,1773058237643,-500.0,0.00018673,2]
[408032614,1773058237652,-500.0,0.00018673,2]
[408032615,1773058237661,-500.0,0.00018673,2]
[408032616,1773058237670,-323.77109867,0.00018673,2]
[408032617,1773058237679,-505.41983925,0.00018673,2]
[408032618,1773058237688,-500.0,0.00018673,2]
[408032619,1773058237697,-2806.0,0.0001872,2]
[408032620,1773058237707,-353.6,0.00018747,2]
[408032621,1773058237716,-3201.83,0.00018793,2]
[408032622,1773058237725,-353.6,0.00018861,2]
[408032623,1773058237734,-152.0,0.00018872,4]
[408032624,1773058237742,-13667.86675686,0.00018899,2]
[408032625,1773058237752,-200.0,0.00018922,2]
[408032626,1773058237760,-922.32356807,0.00018954,4]
[408032627,1773058237770,-2000.0,0.00018963,2]
[408032628,1773058237779,-353.6,0.00018975,2]
[408032629,1773058237788,-1428.38747117,0.00018999,2]
[408032630,1773058237797,-500.0,0.00018999,2]
[408032631,1773058237807,-833.94767128,0.00018999,2]
[408032632,1773058237816,-8000.0,0.00018999,2]
[408032633,1773058237826,-8000.0,0.00018999,2]
[408032634,1773058237834,-8000.0,0.00018999,2]
[408032635,1773058237843,-1500.0,0.00018999,2]
[408032636,1773058237852,-3224.75890656,0.00018999,2]
[408032637,1773058237861,-1500.0,0.00018999,2]
[408032638,1773058237870,-1500.0,0.00018999,2]
[408032639,1773058237879,-1500.0,0.00018999,2]
[408032640,1773058237888,-1500.0,0.00018999,2]
[408032641,1773058237899,-1500.0,0.00018999,2]
[408032642,1773058237908,-1500.0,0.00018999,2]
[408032643,1773058237916,-1500.0,0.00018999,2]
[408032644,1773058237925,-1500.0,0.00018999,2]
[408032645,1773058237934,-250.0,0.00018999,2]
[408032646,1773058237943,-1500.0,0.00018999,2]
[408032647,1773058237952,-1500.0,0.00018999,2]
[408032648,1773058237961,-250.0,0.00018999,2]
[408032649,1773058237969,-1500.0,0.00018999,2]
[408032650,1773058237978,-1500.0,0.00018999,2]
[408032651,1773058237988,-261.64199575,0.00018999,2]
[408032652,1773058237997,-1500.0,0.00018999,2]
[408032653,1773058238007,-250.0,0.00018999,2]
[408032654,1773058238017,-1500.0,0.00018999,2]
[408032655,1773058238026,-1500.0,0.00018999,2]
[408032656,1773058238036,-250.0,0.00018999,2]
[408032657,1773058238045,-1500.0,0.00018999,2]
[408032658,1773058238055,-387.23461474,0.00018999,2]
[408032659,1773058238064,-250.0,0.00018999,2]
[408032660,1773058238076,-1500.0,0.00018999,2]
[408032661,1773058238085,-3000.0,0.00018999,2]
[408032662,1773058238094,-250.0,0.00018999,2]
[408032663,1773058238104,-3000.0,0.00018999,2]
[408032664,1773058238113,-1500.0,0.00018999,2]
[408032665,1773058238123,-250.0,0.00018999,2]
[408032666,1773058238132,-1500.0,0.00018999,2]
[408032667,1773058238141,-3000.0,0.00018999,2]
[408032668,1773058238152,-250.55,0.00018999,2]
[408032669,1773058238161,-1500.0,0.00018999,2]
[408032670,1773058238170,-3000.0,0.00018999,2]
[408032671,1773058238179,-1500.0,0.00018999,2]
[408032672,1773058238188,-3000.0,0.00018999,2]
[408032673,1773058238198,-1500.0,0.00018999,2]
[408032674,1773058238207,-3000.0,0.00018999,2]
[408032675,1773058238216,-1500.0,0.00018999,2]
[408032676,1773058238226,-3000.0,0.00018999,2]
[408032677,1773058238236,-3000.0,0.00018999,2]
[408032678,1773058238245,-1500.0,0.00018999,2]
[408032679,1773058238255,-3000.0,0.00018999,2]
[408032680,1773058238264,-1500.0,0.00018999,2]
[408032681,1773058238272,-3000.0,0.00018999,2]
[408032682,1773058238282,-1500.0,0.00018999,2]
[408032683,1773058238291,-1500.0,0.00018999,2]
[408032684,1773058238300,-174.61919141,0.00018999,2]
[408032685,1773058238310,-151.0,0.00018999,2]
[408032686,1773058238319,-1000.0,0.00018999,2]
[408032687,1773058238328,-1000.0,0.00018999,2]
[408032688,1773058238337,-1000.0,0.00018999,2]
[408032689,1773058238346,-1000.0,0.00018999,2]
[408032690,1773058238356,-1000.0,0.00018999,2]
[408032691,1773058238367,-1000.0,0.00018999,2]
[408032692,1773058238380,-1000.0,0.00018999,2]
[408032693,1773058238390,-1000.0,0.00018999,2]
[408032694,1773058238399,-1000.0,0.00018999,2]
[408032695,1773058238408,-1000.0,0.00018999,2]
[408032696,1773058238417,-1000.0,0.00018999,2]
[408032697,1773058238426,-1500.0,0.00018999,2]
[408032698,1773058238435,-1500.0,0.00018999,2]
[408032699,1773058238444,-1500.0,0.00018999,2]
[408032700,1773058238453,-1500.0,0.00018999,2]
[408032701,1773058238462,-1500.0,0.00018999,2]
[408032702,1773058238471,-1500.0,0.00018999,2]
[408032703,1773058238481,-1500.0,0.00018999,2]
[408032704,1773058238490,-1500.0,0.00018999,2]
[408032705,1773058238499,-1500.0,0.00018999,2]
[408032706,1773058238508,-1588.53467861,0.00018999,2]
[408032707,1773058238517,-290.26104003,0.00018999,2]
[408032708,1773058238526,-262.90206542,0.00018999,2]
[408032709,1773058238535,-5267.18445,0.00019,30]
[408032710,1773058238544,-667.13,0.00019,2]
[408032711,1773058238553,-1400.0,0.00019,6]
[408032712,1773058238562,-162.06455314,0.00019014,2]
[408032713,1773058238571,-847.0,0.0001904,2]
[408032714,1773058238581,-250.0,0.0001905,2]
[408032715,1773058238590,-217.46711665,0.0001905,2]
[408032716,1773058238599,-195.0,0.0001905,2]
[408032717,1773058238608,-1234.16876893,0.0001905,2]
[408032718,1773058238617,-300.0,0.0001905,2]
[408032719,1773058238626,-2500.0,0.0001905,2]
[408032720,1773058238635,-250.0,0.0001905,2]
[408032721,1773058238644,-194.24944797,0.0001905,2]
[408032722,1773058238654,-600.0,0.0001905,2]
[408032723,1773058238663,-195.0,0.0001905,2]
[408032724,1773058238672,-151.0,0.00019054,2]
[408032725,1773058238681,-150.0,0.00019075,30]
[408032726,1773058238690,-150.0,0.00019083,2]
[408032727,1773058238699,-353.6,0.00019089,2]
[408032728,1773058238709,-2530.1,0.00019093,2]
[408032729,1773058238719,-162.06455314,0.00019096,2]
[408032730,1773058238728,-2800.0,0.000191,6]
[408032731,1773058238737,-151.0,0.00019109,2]
[408032732,1773058238747,-1000.0,0.00019121,2]
[408032733,1773058238757,-1000.0,0.00019121,2]
[408032734,1773058238767,-150.0,0.00019136,2]
[408032735,1773058238777,-151.0,0.00019164,2]
[408032736,1773058238787,-350.6,0.00019178,2]
[408032737,1773058238796,-162.06455314,0.00019178,2]
[408032738,1773058238805,-1000.0,0.00019178,2]
[408032739,1773058238814,-150.0,0.00019178,2]
[408032740,1773058238824,-150.0,0.00019189,2]
[408032741,1773058238833,-4200.0,0.000192,7]
[408032742,1773058238842,-353.6,0.00019203,2]
[408032743,1773058238851,-162.04957124,0.00019205,2]
[408032744,1773058238860,-1000.0,0.00019221,2]
[408032745,1773058238869,-1000.0,0.00019221,2]
[408032746,1773058238878,-1000.0,0.00019221,2]
[408032747,1773058238887,-164.10663282,0.00019242,2]
[408032748,1773058238898,-227.0,0.00019248,2]
[408032749,1773058238908,-227.0,0.00019251,2]
[408032750,1773058238919,-162.06455314,0.00019288,2]
[408032751,1773058238929,-172.87392778,0.000193,7]
[408032752,1773058238939,-5600.0,0.000193,7]
[408032753,1773058238949,-227.0,0.00019309,2]
[408032754,1773058238960,-353.6,0.00019317,2]
[408032755,1773058238970,-1680.0,0.00019319,2]
[408032756,1773058238980,-361.33,0.0001935,2]
[408032757,1773058238991,-2098.0,0.0001936,2]
[408032758,1773058239001,-1372.21,0.00019363,2]
[408032759,1773058239010,-162.06455314,0.0001937,2]
[408032760,1773058239020,-7000.0,0.000194,7]
[408032761,1773058239030,-162.04957124,0.00019425,2]
[408032762,1773058239040,-353.6,0.0001943,2]
[408032763,1773058239049,-600.0,0.00019452,7]
[408032764,1773058239059,-600.0,0.00019452,7]
[408032765,1773058239071,-1000.0,0.00019452,2]
[408032766,1773058239082,-227.0,0.00019459,2]
[408032767,1773058239092,-685.0,0.00019466,2]
[408032768,1773058239101,-162.06455314,0.00019479,2]
[408032769,1773058239111,-227.0,0.0001949,2]
[408032770,1773058239121,-1400.0,0.000195,7]
[408032771,1773058239131,-227.0,0.00019529,2]
[408032772,1773058239141,-227.0,0.00019537,2]
[408032773,1773058239153,-353.6,0.00019544,2]
[408032774,1773058239162,-181.08010149,0.00019547,2]
[408032775,1773058239171,-301.00069851,0.00019547,2]
[408032776,1773058239182,-272.62944185,0.00019547,2]
[408032777,1773058239192,-172.87392778,0.00019552,2]
[408032778,1773058239202,-162.06455314,0.00019562,2]
[408032779,1773058239212,-236.58025834,0.00019563,2]
[408032780,1773058239221,-157.72017223,0.00019579,2]
[408032781,1773058239230,-154.97731707,0.000196,2]
[408032782,1773058239240,-1400.0,0.000196,7]
[408032783,1773058239249,-1405.98906032,0.000196,2]
[408032784,1773058239259,-152.0,0.00019605,5]
[408032785,1773058239268,-2384.0,0.00019611,2]
[408032786,1773058239277,-368.0,0.00019611,2]
[408032787,1773058239286,-3072.6,0.00019611,2]
[408032788,1773058239298,-3072.6,0.00019611,2]
[408032789,1773058239308,-3072.6,0.00019611,2]
[408032790,1773058239317,-3072.6,0.00019611,2]
[408032791,1773058239327,-3589.87,0.00019611,2]
[408032792,1773058239336,-162.04957124,0.00019616,2]
[408032793,1773058239345,-1000.0,0.00019628,2]
[408032794,1773058239354,-368.0,0.00019629,2]
[408032795,1773058239362,-162.06455314,0.00019644,2]
[408032796,1773058239371,-353.6,0.00019658,2]
[408032797,1773058239380,-188.9940742,0.00019668,2]
[408032798,1773058239389,-256.0,0.0001967,5]
[408032799,1773058239398,-227.0,0.0001967,2]
[408032800,1773058239407,-150.0,0.00019673,2]
[408032801,1773058239415,-150.0,0.00019673,2]
[408032802,1773058239424,-500.0,0.00019673,2]
[408032803,1773058239433,-150.0,0.00019673,2]
[408032804,1773058239442,-500.0,0.00019673,2]
[408032805,1773058239451,-214.75538024,0.00019673,2]
[408032807,1773058239460,-150.0,0.00019673,2]
[408032808,1773058239469,-167.87375586,0.00019673,2]
[408032809,1773058239478,-150.0,0.00019673,2]
[408032810,1773058239487,-150.0,0.00019673,2]
[408032811,1773058239495,-500.0,0.00019673,2]
[408032812,1773058239504,-500.0,0.00019673,2]
[408032813,1773058239513,-1649.0,0.00019673,2]
[408032814,1773058239522,-848.0,0.00019673,2]
[408032815,1773058239531,-150.0,0.00019673,2]
[408032816,1773058239540,-150.0,0.00019673,2]
[408032817,1773058239548,-661.0,0.00019673,2]
[408032818,1773058239557,-150.0,0.00019673,2]
[408032820,1773058239566,-150.0,0.00019673,2]
[408032821,1773058239575,-500.0,0.00019673,2]
[408032822,1773058239584,-500.0,0.00019673,2]
[408032823,1773058239593,-500.0,0.00019673,2]
[408032824,1773058239602,-500.0,0.00019673,2]
[408032825,1773058239611,-500.0,0.00019673,2]
[408032826,1773058239620,-1105.0,0.00019673,2]
[408032827,1773058239629,-500.0,0.00019673,2]
[408032828,1773058239638,-150.0,0.00019673,2]
[408032829,1773058239650,-500.0,0.00019673,2]
[408032830,1773058239659,-1156.0,0.00019673,2]
[408032831,1773058239668,-616.0,0.00019673,2]
[408032832,1773058239678,-500.0,0.00019673,2]
[408032833,1773058239687,-211.02563779,0.00019673,2]
[408032834,1773058239696,-150.0,0.00019673,2]
[408032835,1773058239705,-150.0,0.00019673,2]
[408032836,1773058239715,-500.0,0.00019673,2]
[408032837,1773058239724,-150.0,0.00019673,2]
[408032838,1773058239733,-500.0,0.00019673,2]
[408032839,1773058239743,-500.0,0.00019673,2]
[408032840,1773058239753,-150.223,0.0001969,2]
[408032841,1773058239762,-151.0,0.0001969,2]
[408032842,1773058239771,-233.667272,0.0001969,2]
[408032843,1773058239780,-220.66738088,0.00019693,2]
[408032844,1773058239790,-1400.0,0.000197,7]
[408032845,1773058239800,-2000.0,0.000197,2]
[408032846,1773058239810,-3749.0,0.00019722,2]
[408032847,1773058239820,-414.0,0.00019722,2]
[408032848,1773058239829,-500.0,0.00019726,2]
[408032849,1773058239839,-1000.0,0.00019726,2]
[408032850,1773058239849,-250.0,0.00019726,2]
[408032851,1773058239860,-500.0,0.00019727,2]
[408032852,1773058240064,-500.0,0.00019727,2]
[408032853,1773058240076,-277.09096331,0.00019728,2]
[408032854,1773058240085,-150.0,0.00019728,2]
[408032855,1773058240095,-500.0,0.00019728,2]
[408032856,1773058240105,-285.50154825,0.00019728,2]
[408032857,1773058240115,-500.0,0.00019728,2]
[408032858,1773058240124,-152.96458514,0.00019728,2]
[408032859,1773058240134,-150.0,0.00019728,2]
[408032860,1773058240145,-150.0,0.00019728,2]
[408032861,1773058240155,-500.0,0.00019728,2]
[408032862,1773058240165,-500.0,0.00019728,2]
[408032863,1773058240174,-1649.0,0.00019728,2]
[408032864,1773058240183,-848.0,0.00019728,2]
[408032865,1773058240192,-150.0,0.00019728,2]
[408032866,1773058240202,-150.0,0.00019728,2]
[408032867,1773058240211,-150.0,0.00019728,2]
[408032868,1773058240220,-500.0,0.00019728,2]
[408032869,1773058240230,-500.0,0.00019728,2]
[408032870,1773058240240,-661.0,0.00019728,2]
[408032871,1773058240249,-500.0,0.00019728,2]
[408032872,1773058240258,-500.0,0.00019728,2]
[408032873,1773058240267,-500.0,0.00019728,2]
[408032874,1773058240277,-1105.0,0.00019728,2]
[408032875,1773058240286,-500.0,0.00019728,2]
[408032876,1773058240296,-273.89418644,0.00019728,2]
[408032877,1773058240305,-500.0,0.00019728,2]
[408032878,1773058240315,-1156.0,0.00019728,2]
[408032879,1773058240325,-616.0,0.00019728,2]
[408032880,1773058240334,-500.0,0.00019728,2]
[408032881,1773058240343,-150.10489082,0.00019728,2]
[408032882,1773058240353,-236.99459924,0.00019728,2]
[408032883,1773058240363,-500.0,0.00019728,2]
[408032884,1773058240372,-500.0,0.00019728,2]
[408032885,1773058240382,-500.0,0.00019728,2]
[408032886,1773058240391,-485.07925419,0.00019728,2]
[408032887,1773058240401,-328.79,0.00019728,2]
[408032888,1773058240411,-151.0,0.00019745,2]
[408032889,1773058240420,-151.0,0.00019745,2]
[408032890,1773058240429,-151.0,0.00019745,2]
[408032891,1773058240440,-250.0,0.00019749,2]
[408032892,1773058240453,-162.06455314,0.00019753,2]
[408032893,1773058240463,-227.0,0.00019755,2]
[408032894,1773058240473,-557.0,0.00019768,2]
[408032895,1773058240484,-500.0,0.00019768,2]
[408032896,1773058240494,-500.0,0.00019768,2]
[408032897,1773058240504,-353.6,0.00019772,2]
[408032898,1773058240514,-500.0,0.00019773,2]
[408032899,1773058240523,-500.0,0.00019773,2]
[408032900,1773058240534,-500.0,0.00019781,2]
[408032901,1773058240546,-500.0,0.00019782,2]
[408032902,1773058240555,-500.0,0.00019782,2]
[408032903,1773058240565,-500.0,0.00019782,2]
[408032904,1773058240574,-500.0,0.00019782,2]
[408032905,1773058240583,-500.0,0.00019782,2]
[408032906,1773058240593,-500.0,0.00019782,2]
[408032907,1773058240604,-500.0,0.00019782,2]
[408032908,1773058240614,-506.82131153,0.00019782,2]
[408032909,1773058240624,-502.32320781,0.00019782,2]
[408032910,1773058240633,-150.0,0.00019783,2]
[408032911,1773058240643,-450.0,0.00019783,2]
[408032912,1773058240652,-276.29568284,0.00019783,2]
[408032913,1773058240661,-244.99040052,0.00019783,2]
[408032914,1773058240670,-179.08949688,0.00019783,2]
[408032915,1773058240679,-208.71326845,0.00019783,2]
[408032916,1773058240689,-500.0,0.00019783,2]
[408032917,1773058240699,-1649.0,0.00019783,2]
[408032918,1773058240708,-848.0,0.00019783,2]
[408032919,1773058240717,-150.0,0.00019783,2]
[408032920,1773058240727,-150.0,0.00019783,2]
[408032921,1773058240736,-500.0,0.00019783,2]
[408032922,1773058240745,-500.0,0.00019783,2]
[408032923,1773058240755,-210.57620522,0.00019783,2]
[408032924,1773058240764,-661.0,0.00019783,2]
[408032925,1773058240773,-203.29632904,0.00019783,2]
[408032926,1773058240783,-500.0,0.00019783,2]
[408032927,1773058240793,-500.0,0.00019783,2]
[408032928,1773058240802,-1105.0,0.00019783,2]
[408032929,1773058240813,-500.0,0.00019783,2]
[408032930,1773058240823,-500.0,0.00019783,2]
[408032931,1773058240833,-1156.0,0.00019783,2]
[408032932,1773058240842,-616.0,0.00019783,2]
[408032933,1773058240851,-500.0,0.00019783,2]
[408032934,1773058240861,-500.0,0.00019783,2]
[408032935,1773058240870,-500.0,0.00019783,2]
[408032936,1773058240879,-500.0,0.00019783,2]
[408032937,1773058240888,-250.0,0.0001979,2]
[408032938,1773058240897,-24083.4617714,0.00019793,2]
[408032939,1773058240906,-2191.6908551,0.00019793,2]
[408032940,1773058240916,-500.0,0.00019799,2]
[408032941,1773058240925,-500.0,0.00019799,2]
[408032942,1773058240935,-500.0,0.00019799,2]
[408032943,1773058240944,-500.0,0.00019799,2]
[408032944,1773058240953,-500.0,0.00019799,2]
[408032945,1773058240963,-500.0,0.00019799,2]
[408032946,1773058240972,-500.0,0.00019799,2]
[408032947,1773058240981,-500.0,0.00019799,2]
[408032948,1773058240991,-500.0,0.00019799,2]
[408032949,1773058241000,-150.0,0.000198,30]
[408032950,1773058241010,-5015.0,0.000198,5]
[408032951,1773058241019,-3202.2795,0.000198,2]
[408032952,1773058241029,-920.26835,0.000198,2]
[408032953,1773058241038,-920.26835,0.000198,2]
[408032954,1773058241047,-1400.0,0.000198,7]
[408032955,1773058241056,-2000.0,0.000198,2]
[408032956,1773058241066,-250.0,0.000198,2]
[408032957,1773058241080,-6221.40746089,0.0001981,2]
[408032958,1773058241089,-4358.295,0.00019815,2]
[408032959,1773058241099,-183.778,0.00019815,2]
[408032960,1773058241108,-267.0,0.00019819,2]
[408032961,1773058241119,-401.82767376,0.00019836,2]
[408032962,1773058241128,-162.06455314,0.00019836,2]
[408032963,1773058241137,-250.0,0.00019836,2]
[408032964,1773058241150,-150.0,0.00019837,2]
[408032965,1773058241160,-500.0,0.00019837,2]
[408032966,1773058241170,-1649.0,0.00019837,2]
[408032967,1773058241179,-848.0,0.00019837,2]
[408032968,1773058241188,-251.70358089,0.00019837,2]
[408032969,1773058241198,-500.0,0.00019837,2]
[408032970,1773058241207,-500.0,0.00019837,2]
[408032971,1773058241217,-661.0,0.00019837,2]
[408032972,1773058241226,-500.0,0.00019837,2]
[408032973,1773058241237,-500.0,0.00019837,2]
[408032974,1773058241247,-1105.0,0.00019837,2]
[408032975,1773058241257,-500.0,0.00019837,2]
[408032976,1773058241267,-500.0,0.00019837,2]
[408032977,1773058241277,-1156.0,0.00019837,2]
[408032978,1773058241286,-616.0,0.00019837,2]
[408032979,1773058241296,-500.0,0.00019837,2]
[408032980,1773058241306,-500.0,0.00019837,2]
[408032981,1773058241315,-500.0,0.00019837,2]
[408032982,1773058241334,-500.0,0.00019837,2]
[408032983,1773058241351,-200.0,0.0001984,2]
[408032984,1773058241373,-172.84,0.00019842,2]
[408032985,1773058241395,-10000.0,0.00019847,2]
[408032986,1773058241411,-368.0,0.00019857,2]
[408032987,1773058241430,-153.42726248,0.00019864,2]
[408032988,1773058241449,-250.0,0.0001987,3]
[408032989,1773058241469,-25000.0,0.00019874,3]
[408032990,1773058241489,-172.87392778,0.0001988,3]
[408032991,1773058241508,-151.0,0.00019882,2]
[408032992,1773058241529,-151.0,0.00019882,2]
[408032993,1773058241546,-151.0,0.00019882,2]
[408032994,1773058241562,-151.0,0.00019882,2]
[408032995,1773058241580,-151.0,0.00019882,2]
[408032996,1773058241594,-151.0,0.00019882,2]
[408032997,1773058241611,-25000.0,0.00019882,3]
[408032998,1773058241626,-353.6,0.00019886,2]
[408032999,1773058241642,-25000.0,0.00019891,3]
[408033000,1773058241658,-150.0,0.00019892,2]
[408033001,1773058241672,-1649.0,0.00019892,2]
[408033002,1773058241688,-848.0,0.00019892,2]
[408033003,1773058241711,-500.0,0.00019892,2]
[408033004,1773058241726,-500.0,0.00019892,2]
[408033005,1773058241741,-661.0,0.00019892,2]
[408033006,1773058241764,-154.61846768,0.00019892,2]
[408033007,1773058241779,-500.0,0.00019892,2]
[408033008,1773058241794,-1105.0,0.00019892,2]
[408033009,1773058241808,-500.0,0.00019892,2]
[408033010,1773058241823,-500.0,0.00019892,2]
[408033011,1773058241838,-1156.0,0.00019892,2]
[408033012,1773058241854,-616.0,0.00019892,2]
[408033013,1773058241869,-405.47740234,0.00019892,2]
[408033014,1773058241884,-500.0,0.00019892,2]
[408033015,1773058241899,-500.0,0.00019892,2]
[408033016,1773058241913,-500.0,0.00019892,2]
[408033017,1773058241928,-1611.61890734,0.00019894,2]
[408033018,1773058241943,-220.66738087,0.00019894,2]
[408033019,1773058241958,-1611.61890734,0.00019897,2]
[408033020,1773058241973,-151.0,0.00019897,2]
[408033021,1773058241988,-151.0,0.00019897,2]
[408033022,1773058242003,-2000.0,0.000199,2]
[408033023,1773058242018,-25000.0,0.000199,3]
[408033024,1773058242034,-708.16830237,0.000199,2]
[408033025,1773058242051,-1372.09440931,0.000199,2]
[408033026,1773058242066,-484.31397246,0.000199,2]
[408033027,1773058242085,-6629.51072437,0.000199,3]
[408033028,1773058242100,-832.91727737,0.000199,2]
[408033029,1773058242117,-1724.0,0.000199,7]
[408033030,1773058242132,-151.0,0.000199,2]
[408033031,1773058242149,-1611.61890734,0.000199,2]
[408033032,1773058242165,-8531.31265296,0.000199,2]
[408033035,1773058242180,-4075.8059006,0.000199,2]
[408033038,1773058242195,-151.0,0.000199,2]
[408033040,1773058242211,-151.0,0.000199,2]
[408033043,1773058242225,-250.0,0.000199,3]
[408033046,1773058242242,-250.0,0.00019925,3]
[408033048,1773058242257,-500.0,0.00019944,2]
[408033051,1773058242272,-500.0,0.00019944,2]
[408033054,1773058242287,-500.0,0.00019944,2]
[408033056,1773058242302,-1649.0,0.00019947,2]
[408033059,1773058242316,-848.0,0.00019947,2]
[408033061,1773058242331,-500.0,0.00019947,2]
[408033064,1773058242347,-500.0,0.00019947,2]
[408033067,1773058242361,-661.0,0.00019947,2]
[408033069,1773058242379,-500.0,0.00019947,2]
[408033072,1773058242395,-1105.0,0.00019947,2]
[408033075,1773058242410,-500.0,0.00019947,2]
[408033076,1773058242426,-500.0,0.00019947,2]
[408033077,1773058242440,-1156.0,0.00019947,2]
[408033078,1773058242455,-616.0,0.00019947,2]
[408033079,1773058242470,-340.05274297,0.00019947,2]
[408033080,1773058242485,-500.0,0.00019947,2]
[408033081,1773058242499,-500.0,0.00019947,2]
[408033082,1773058242513,-250.0,0.00019947,3]
[408033083,1773058242528,-1108.21987424,0.0001995,15]
[408033084,1773058242543,-500.0,0.00019972,2]
[408033085,1773058242559,-150.0,0.00019973,2]
[408033086,1773058242573,-23664.84570739,0.00019973,2]
[408033087,1773058242587,-3664.0,0.00019973,2]
[408033088,1773058242602,-250.0,0.00019973,3]
[408033089,1773058242616,-118906.15753635,0.0001998,2]
[408033090,1773058242631,-151.0,0.0001998,2]
[408033091,1773058242645,-151.0,0.0001998,2]
[408033092,1773058242660,-151.0,0.0001998,2]
[408033093,1773058242675,-151.0,0.0001998,2]
[408033094,1773058242689,-150.236,0.0001999,2]
[408033095,1773058242705,-150.182,0.0001999,2]
[408033096,1773058242719,-150.0,0.0001999,2]
[408033097,1773058242733,-150.1,0.0001999,2]